Cogmind - Beta 12 @@@ ROGUE MODE // 2023.11.01 @ 18:23:41 Player: Figgis Result: Destroyed by H-77 Assassin with Coil Gun Performance ------------- Evolutions (7) 3500 Regions Visited (16) 3200 Robots Destroyed (113) 565 Value Destroyed (4746) 4746 Prototype IDs (45) 900 Alien Tech Used (2) 400 Bonus (2364) 2364 TOTAL SCORE: 15675 Bonus ------- High Alert Combat Kills 105 Follower Combat Kills 1573 Aligned with FarCom 300 Scanned by Researcher 500 Friendly Fire -114 Cogmind --------- Core Integrity 0/1300 Matter 76/300 Energy 74/100 System Corruption 9% Temperature Cool (0) Movement Core (50) Location -3/Quarantine Parts ------- > --- POWER (2) -------- (None) > --- PROPULSION (6) --- (None) > --- UTILITY (8) ------ System Shield > --- WEAPON (5) ------- (None) > --- INVENTORY (5) ---- Light Particle Reactor Advanced Heat Sink Hardcell Cannon Heavy Gauss Cannon Enhanced Force Lance Peak State ------------ > --- POWER ------------ Deuterium-Angular Engine > --- PROPULSION ------- Improved Carbon-fiber Leg Improved Titanium Leg Titanium Exoskeleton > --- UTILITY ---------- Armored Scrap Engine Improved Cooling System Huge Storage Unit Improved Reaction Control System EM Disruption Field Improved Shield Generator > --- WEAPON ----------- High-powered Shock Rifle Improved EM Pulse Cannon Hpw. Ballistic Penetrator Construct/G > --- INVENTORY -------- Improved Carbon-fiber Leg Field Propulsion Drive Advanced Heat Sink Advanced Heat Sink Enhanced Optical Array Transmission Jammer Improved Reaction Control System Cloak of Protection Improved Weapon Shielding Medium Armor Plating Advanced Shield Generator Point Defense System Point Defense Array Drone Bay Drone Bay Drone Bay Drone Bay Drone Bay Drone Bay Drone Bay Chainsword Deploy-a-Sentry [Rating: 98] Favorites ----------- Power Constructs Engine Constructs Power Core Enhanced Nuclear Core Reactor Light Particle Reactor Propulsion Carbon-fiber Leg Leg Carbon-fiber Leg Hover Unit Combat Gravmag System Flight Unit Field Propulsion Array Utility Huge Storage Unit Device Armored Scrap Engine Storage Huge Storage Unit Processor Improved Corruption Screen Hackware System Shield Protection Medium Armor Plating Artifact Phase Redirector Weapon Gauss Rifle Energy Gun Wave Gun Energy Cannon Guided Plasma Cannon Ballistic Gun Gauss Rifle Ballistic Cannon Gauss Cannon Slashing Weapon Chainsword Piercing Weapon Enhanced Force Lance Build | -11 -10 -10 -10 -9 -8 -7 -7 -7 -5 -5 -5 -4 -4 -4 -3 -3 ------- Run | Jun Mat Min Exi Min Mat Fac Sto Rec Fac Ext Cet Fac Upp Upp Res Qua Slots Evolved 14 | . . . . . 4 2 . . 4 . . 2 . . 2 . Power 1 | . . . . . . . . . 1 . . . . . . . Propulsion 4 | . . . . . 2 . . . 1 . . 1 . . . . Utility 6 | . . . . . 2 1 . . 1 . . 1 . . 1 . Weapon 3 | . . . . . . 1 . . 1 . . . . . 1 . Parts Attached 119 | 3 11 . 1 2 22 13 10 2 2 6 . 20 3 . 10 14 Power 12 | 1 1 . . 1 4 1 . 1 . . . . 1 . 1 1 Engine 9 | 1 1 . . 1 4 . . 1 . . . . 1 . . . Core 1 | . . . . . . 1 . . . . . . . . . . Reactor 2 | . . . . . . . . . . . . . . . 1 1 Propulsion 30 | 2 2 . . 1 8 2 4 . . . . 6 . . 4 1 Treads . | . . . . . . . . . . . . . . . . . Leg 26 | 2 2 . . 1 8 2 4 . . . . 4 . . 3 . Wheel . | . . . . . . . . . . . . . . . . . Hover 1 | . . . . . . . . . . . . . . . . 1 Flight 3 | . . . . . . . . . . . . 2 . . 1 . Utility 46 | . 3 . 1 . 3 6 3 1 2 2 . 12 2 . 4 7 Device 31 | . 1 . 1 . 2 4 1 1 1 2 . 9 2 . 3 4 Storage 4 | . 2 . . . . 1 . . . . . . . . . 1 Processor 1 | . . . . . . . . . . . . . . . 1 . Hackware 4 | . . . . . 1 . . . . . . 2 . . . 1 Protection 5 | . . . . . . 1 2 . 1 . . 1 . . . . Artifact 1 | . . . . . . . . . . . . . . . . 1 Weapon 31 | . 5 . . . 7 4 3 . . 4 . 2 . . 1 5 Energy Gun 3 | . 1 . . . . . . . . 1 . 1 . . . . Energy Cannon 3 | . . . . . . . 1 . . 1 . 1 . . . . Ballistic Gun 16 | . 4 . . . 7 3 2 . . . . . . . . . Ballistic Cannon 6 | . . . . . . 1 . . . 1 . . . . 1 3 Launcher . | . . . . . . . . . . . . . . . . . Special Weapon . | . . . . . . . . . . . . . . . . . Impact Weapon . | . . . . . . . . . . . . . . . . . Slashing Weapon 1 | . . . . . . . . . . 1 . . . . . . Piercing Weapon 2 | . . . . . . . . . . . . . . . . 2 Special Melee Weapon . | . . . . . . . . . . . . . . . . . Unidentified Prototypes 8 | . . . . . 2 2 . . . . . . . . . 4 Parts Lost 58 | . 4 . . . 8 2 6 1 . 1 2 22 4 . 2 6 Power 5 | . . . . . 1 . . 1 . . . 2 1 . . . Propulsion 18 | . 2 . . . 4 . 2 . . . . 5 1 . 1 3 Utility 22 | . . . . . 2 1 2 . . . . 11 2 . 1 3 Weapon 13 | . 2 . . . 1 1 2 . . 1 2 4 . . . . Highest Loss Streak 11 | . 3 . . . 8 1 5 1 . 1 2 11 4 . 1 3 To Critical Strikes 1 | . . . . . . . . . . . . . . . . 1 Average Slot Usage (%) 69 | . 86 89 91 100 93 98 91 62 47 54 52 45 18 . 20 28 Engine 4 | . 14 14 14 14 8 4 . 5 . 3 2 4 1 . . . Core 1 | . . . . . . 2 7 1 5 1 . . . . . . Leg 17 | . 27 28 28 28 33 30 29 11 5 5 5 8 . . 8 8 Device 13 | . 3 4 6 14 14 17 16 15 10 16 23 17 7 . 6 1 Storage 6 | . 13 14 14 14 9 7 7 7 5 5 5 4 . . . . Hackware 4 | . . . . . 8 7 7 7 5 2 . 1 4 . . 2 Protection 1 | . . . . . . 3 1 . 5 3 . . . . . . Energy Cannon 1 | . . . . . . . 5 7 . 2 . 1 . . . . Ballistic Gun 10 | . 23 28 28 28 17 15 11 5 5 2 8 4 . . . . Ballistic Cannon 1 | . . . . . . 6 1 . . 1 1 . . . . 1 Naked Turns 56 | . . . . . . . . . . . . . 25 4 27 . Heaviest Build 146 | 3 33 33 33 33 40 114 109 111 113 146 146 131 11 . 2 142 Greatest Support 94 | 3 20 20 20 20 55 67 71 88 62 56 56 94 15 3 8 81 Greatest Overweight (x) 12 | . 1 1 1 1 12 1 2 2 1 2 2 3 . . . 1 Average Overweight (x) . | . . 1 1 1 . . 1 1 1 1 2 . . . . . Largest Inventory Capacity 25 | 5 15 15 15 15 15 25 25 25 25 25 25 25 5 5 5 25 Average Capacity 20 | 5 12 15 15 15 15 24 25 25 25 25 25 22 5 5 5 8 Most Carried 25 | 5 11 12 15 15 15 25 25 25 16 25 25 25 5 4 5 5 Average Carried 16 | 3 6 11 13 14 14 22 24 14 14 21 25 20 4 4 4 4 Final Capacity 25 | 5 15 15 15 15 15 25 25 25 25 25 25 5 5 5 5 5 Final Carried 25 | 5 10 12 15 15 15 25 25 14 13 25 25 5 4 4 5 5 Scrap Engine Consumption 109 | . . . . . . . . 32 9 47 12 7 2 . . . Constructs Created 5 | . . . . . . . . 3 . 1 1 . . . . . Constructs Modified 32 | . . . . . . . . 9 3 13 4 3 . . . . Class Distribution -------------------- 44% | Mutant 34% | Construct 13% | Tank 5% | Scavenger-Mutant Dominant Class ---------------- Mutant | -10/Materials Mutant | -10/Mines Mutant | -10/Exiles Mutant | -9/Mines Scavenger-Mutant | -8/Materials Tank | -7/Factory Mutant | -7/Storage Construct | -7/Recycling Construct | -5/Factory Construct | -5/Extension Construct | -5/Cetus Construct | -4/Factory Mutant | -4/Upper Caves Mutant | -4/Upper Caves Mutant | -3/Research Mutant | -3/Quarantine Resources | -11 -10 -10 -10 -9 -8 -7 -7 -7 -5 -5 -5 -4 -4 -4 -3 -3 ----------- Run | Jun Mat Min Exi Min Mat Fac Sto Rec Fac Ext Cet Fac Upp Upp Res Qua Matter Collected 3989 | 189 192 77 . 248 587 794 664 28 70 377 224 476 28 . . 35 Remotely . | . . . . . . . . . . . . . . . . . Salvage Created 5142 | . 258 128 . 36 814 858 1378 434 . 573 265 398 . . . . Parts 231 | . 9 10 . 2 49 43 57 7 . 26 11 17 . . . . Haulers Intercepted 3 | . . . . . 1 . 2 . . . . . . . . . Recyclers Shooed 3 | . . . . . . . 1 . . . . . . . . 2 Parts Field Recycled . | . . . . . . . . . . . . . . . . . Retrieved Matter . | . . . . . . . . . . . . . . . . . Parts Self-Destructed . | . . . . . . . . . . . . . . . . . Prevented . | . . . . . . . . . . . . . . . . . Kills | -11 -10 -10 -10 -9 -8 -7 -7 -7 -5 -5 -5 -4 -4 -4 -3 -3 ------- Run | Jun Mat Min Exi Min Mat Fac Sto Rec Fac Ext Cet Fac Upp Upp Res Qua Combat Hostiles Destroyed 84 | . 5 4 . 1 14 9 20 7 . 11 7 6 . . . . Melee 1 | . . . . . . . . . . 1 . . . . . . Guns 44 | . 4 4 . 1 14 2 4 . . 5 5 5 . . . . Cannons 32 | . . . . . . 7 14 4 . 5 2 . . . . . AOE 2 | . 1 . . . . . . . . . . 1 . . . . Classes Destroyed 14 | . 2 1 . . 7 2 1 1 . . . . . . . . Worker 3 | . . . . . 2 1 . . . . . . . . . . Builder 3 | . . . . . 2 1 . . . . . . . . . . Tunneler 2 | . . . . . 1 1 . . . . . . . . . . Hauler 3 | . . . . . 1 . 2 . . . . . . . . . Recycler 5 | . . . . . . 3 2 . . . . . . . . . Mechanic 1 | . . . . . . . 1 . . . . . . . . . Watcher 12 | . 2 . . . 2 5 1 . . . . 2 . . . . Swarmer 10 | . . 2 . . 3 . . . . 2 3 . . . . . Grunt 32 | . 5 2 . 1 5 2 12 . . 5 . . . . . . Duelist 2 | . . . . . 1 . . 1 . . . . . . . . Protector 1 | . . . . . . . . 1 . . . . . . . . Sentry 23 | . . . . . 4 5 6 4 . 3 . 1 . . . . Hunter 1 | . . . . . 1 . . . . . . . . . . . Programmer 12 | . . . . . . 2 2 1 . . 2 5 . . . . Cetus Guard 2 | . . . . . . . . . . . 2 . . . . . Guerrilla 1 | . . . . . . . . . . 1 . . . . . . Best Kill Streak 9 | . 2 2 . 1 9 4 6 2 . 3 3 2 . . . . Combat Bots Only 5 | . 2 2 . 1 4 2 5 2 . 3 3 2 . . . . Max Kills in Single Turn 2 | . 1 2 . 1 2 2 1 1 . 2 1 1 . . . . Gunslinging 1 | . . 1 . . 1 . . . . . . . . . . . Exploded 1 | . 1 . . . . . . . . . . 1 . . . . Melee 1 | . . . . . . . . . . 1 . . . . . . Uniques/NPCs Destroyed . | . . . . . . . . . . . . . . . . . Combat | -11 -10 -10 -10 -9 -8 -7 -7 -7 -5 -5 -5 -4 -4 -4 -3 -3 -------- Run | Jun Mat Min Exi Min Mat Fac Sto Rec Fac Ext Cet Fac Upp Upp Res Qua Damage Taken 12968 | . 625 128 . 23 1179 975 1289 744 297 352 728 3708 441 10 208 2261 Core 3159 | . 147 58 . 8 201 58 204 79 26 37 102 650 324 10 69 1186 Absorbed by Shields 1916 | . . 12 . 9 285 163 . . 210 254 283 700 . . . . Regen/Repaired (Parts) 772 | . . . . . 52 . . 187 191 246 71 25 . . . . Core Remaining (%) 54 | 100 . . . 14 63 . . 51 . . 83 . . 14 . . Volleys Fired 385 | . 33 12 . 8 65 48 67 29 10 39 26 48 . . . . Largest 4 | . 2 2 . 2 2 3 3 2 1 4 4 3 . . . . Hottest 277 | . 60 46 . 46 56 104 120 120 34 277 277 169 . . . . Shots Fired 775 | . 64 25 . 17 127 138 123 30 10 88 61 92 . . . . Gun 584 | . 64 25 . 17 127 94 68 2 10 49 43 85 . . . . Cannon 191 | . . . . . . 44 55 28 . 39 18 7 . . . . Launcher . | . . . . . . . . . . . . . . . . . Special . | . . . . . . . . . . . . . . . . . Kinetic 640 | . 57 25 . 17 127 138 94 2 10 41 52 77 . . . . Thermal 113 | . . . . . . . 29 28 . 47 9 . . . . . Explosive . | . . . . . . . . . . . . . . . . . Electromagnetic 22 | . 7 . . . . . . . . . . 15 . . . . Robot Hit Streak 62 | . 17 4 . 3 12 8 32 62 5 7 8 10 . . . . Robot Miss Streak 10 | . 3 3 . 6 4 10 6 . 3 4 3 8 . . . . Penetration Max 1 | . . . . . 1 1 1 . . . 1 1 . . . . Secondary Targets 5 | . 1 1 . . 1 . 1 . . . 1 . . . . . Max Gunslinging Chain 1 | . 1 1 . . 1 . 1 . . . 1 . . . . . Shots Hit Robots 465 | . 44 15 . 7 76 76 86 30 5 33 39 54 . . . . Core Hits 181 | . 15 6 . 2 39 28 35 9 . 19 14 14 . . . . Critical Kills 6 | . . . . . . 2 1 . . . 2 1 . . . . Critical Parts Destroyed 6 | . . . . . 1 2 . . . . . 3 . . . . Critical Strikes 22 | . 1 . . . 1 7 5 . . 1 2 5 . . . . Destroy 13 | . . . . . 1 4 1 . . . 2 5 . . . . Blast 8 | . . . . . . 3 4 . . 1 . . . . . . Corrupt 1 | . 1 . . . . . . . . . . . . . . . Melee Attacks 49 | . . . . . . . . . . 47 . . . . . 2 Impact . | . . . . . . . . . . . . . . . . . Slashing 47 | . . . . . . . . . . 47 . . . . . . Piercing 2 | . . . . . . . . . . . . . . . . 2 Sneak Attacks 2 | . . . . . . . . . . 2 . . . . . . Combat Hostiles 1 | . . . . . . . . . . 1 . . . . . . Follow-up Attacks . | . . . . . . . . . . . . . . . . . Damage Inflicted 12401 | . 634 237 . 102 1506 2138 2479 1022 121 1126 1344 1639 5 3 . 45 Guns 7464 | . 578 237 . 102 1505 1216 899 37 121 417 826 1526 . . . . Cannons 4451 | . . . . . . 728 1580 985 . 527 518 113 . . . . Explosions 250 | . 56 . . . . 194 . . . . . . . . . . Melee 182 | . . . . . . . . . . 182 . . . . . . Ramming 54 | . . . . . 1 . . . . . . . 5 3 . 45 Kinetic 9007 | . 512 237 . 102 1505 1944 1385 37 121 533 1120 1511 . . . . Thermal 2847 | . 20 . . . . 113 1094 985 . 411 224 . . . . . Explosive 117 | . 36 . . . . 81 . . . . . . . . . . Electromagnetic 194 | . 66 . . . . . . . . . . 128 . . . . Impact . | . . . . . . . . . . . . . . . . . Slashing 182 | . . . . . . . . . . 182 . . . . . . Piercing . | . . . . . . . . . . . . . . . . . Highest Corruption 18 | . 3 3 3 3 4 2 2 1 2 2 2 15 18 18 2 9 Average Corruption 3 | . 2 3 3 3 4 2 1 1 1 2 2 6 15 18 1 4 Corruption Purged 7 | . . . . . . . 2 . . . . 5 . . . . Corruption Blocked 15 | . . . . . . . . . . . . . . . . 15 Effects 170 | . . 11 7 5 9 15 9 1 4 24 8 41 17 1 1 17 Message Errors 41 | . . 5 3 1 2 3 3 1 3 4 1 10 3 . . 2 Matter Fused 43 | . . . 1 1 2 6 2 . . 8 3 9 6 . . 5 Heat Flow Errors 18 | . . . 1 1 . 1 1 . . 3 1 8 1 . . 1 Energy Discharges 17 | . . 2 . 1 . . . . . 1 . 4 2 . . 7 Parts Rejected 4 | . . 1 . . 1 . 1 . . . . 1 . . . . Parts Fused 2 | . . . . . 1 . . . . . . 1 . . . . Data Loss (minor) 17 | . . . . . 2 4 1 . . 4 . 3 1 . . 2 Data Loss (major) 12 | . . 2 2 . . 1 . . . 2 3 1 . . 1 . Misfires 4 | . . 1 . 1 1 . . . . . . 1 . . . . Alerts 4 | . . . . . . . . . 1 2 . 1 . . . . Misdirections 7 | . . . . . . . . . . . . 2 4 1 . . Weapon Failures 1 | . . . . . . . 1 . . . . . . . . . Overload Shots . | . . . . . . . . . . . . . . . . . Overflow Damage 302 | . 90 . . . . 103 45 42 . 22 . . . . . . Projectiles 93 | . . . . . . . 45 42 . 6 . . . . . . Explosions 193 | . 90 . . . . 103 . . . . . . . . . . Melee 16 | . . . . . . . . . . 16 . . . . . . Knockbacks 7 | . . . . . . 2 1 . . 4 . . . . . . Impact . | . . . . . . . . . . . . . . . . . Kinetic 6 | . . . . . . 2 1 . . 3 . . . . . . Secondary 1 | . . . . . . . . . . 1 . . . . . . Self-Inflicted Damage 392 | . 150 . . . . 218 . . . . . . 2 1 . 21 Shots 6 | . 2 . . . . 4 . . . . . . . . . . Rammed 14 | . . . . . 1 . . . . . . . 1 1 . 11 Targets Rammed 14 | . . . . . 1 . . . . . . . 1 1 . 11 Kicked . | . . . . . . . . . . . . . . . . . Crushed . | . . . . . . . . . . . . . . . . . Highest Temperature 377 | . 30 49 103 189 19 269 274 156 . 377 189 238 145 . . 164 Average Temperature 72 | . 6 17 56 42 4 58 70 53 . 147 86 72 83 . . 121 Received Heat Transfer 2173 | . 267 61 . 12 348 243 615 150 16 88 63 244 66 . . . Effects 2 | . . . . . . . . . . 2 . . . . . . Shutdowns 1 | . . . . . . . . . . 1 . . . . . . Energy Bleed 1 | . . . . . . . . . . 1 . . . . . . Siege Activations . | . . . . . . . . . . . . . . . . . Robots Corrupted . | . . . . . . . . . . . . . . . . . Combat Hostiles . | . . . . . . . . . . . . . . . . . Parts Fried 1 | . 1 . . . . . . . . . . . . . . . Impact Corruptions . | . . . . . . . . . . . . . . . . . Robots Melted 5 | . . . . . . . 2 3 . . . . . . . . Combat Hostiles 5 | . . . . . . . 2 3 . . . . . . . . Parts Melted 15 | . . . . . . . 6 9 . . . . . . . . Heat Transferred 5170 | . 50 . . . . 50 2320 1805 . 597 348 . . . . . Parts Sabotaged . | . . . . . . . . . . . . . . . . . Parts Stolen . | . . . . . . . . . . . . . . . . . Parts Stripped . | . . . . . . . . . . . . . . . . . Power Chain Reactions 1 | . 1 . . . . . . . . . . . . . . . Missiles Intercepted . | . . . . . . . . . . . . . . . . . Alert | -11 -10 -10 -10 -9 -8 -7 -7 -7 -5 -5 -5 -4 -4 -4 -3 -3 ------- Run | Jun Mat Min Exi Min Mat Fac Sto Rec Fac Ext Cet Fac Upp Upp Res Qua Peak Influence 513 | . 119 143 . 20 170 211 513 128 110 433 440 497 . . 312 220 Initial 207 | . . 28 . . . 54 57 86 18 37 207 134 . . 201 175 Average 134 | . 60 97 . 12 70 105 323 66 36 152 331 181 . . 245 115 Maximum Alert Level 2 | . . . . . . 1 2 . . 2 2 2 . . 1 1 Low Security (%) 76 | 100 100 100 . 100 100 96 9 100 100 80 . 61 . . . 73 Level 1 17 | . . . . . . 3 55 . . 11 62 33 . . 100 26 Level 2 6 | . . . . . . . 34 . . 8 37 5 . . . . Level 3 . | . . . . . . . . . . . . . . . . . Level 4 . | . . . . . . . . . . . . . . . . . Level 5 . | . . . . . . . . . . . . . . . . . High Security . | . . . . . . . . . . . . . . . . . Max Security . | . . . . . . . . . . . . . . . . . Squads Dispatched 31 | . . . . . 3 3 7 . 2 3 . 8 . . 1 4 Investigation 5 | . . . . . 1 1 . . . 1 . 1 . . 1 . Extermination 12 | . . . . . . 2 2 . 2 . . 5 . . . 1 Reinforcement 11 | . . . . . 2 . 2 . . 2 . 2 . . . 3 Assault . | . . . . . . . . . . . . . . . . . Garrison 3 | . . . . . . . 3 . . . . . . . . . Intercept . | . . . . . . . . . . . . . . . . . Searches Triggered . | . . . . . . . . . . . . . . . . . Construction Impeded 1 | . . . . . . . . . . . . . . . . 1 Haulers Reinforced . | . . . . . . . . . . . . . . . . . Active Scanning Responses . | . . . . . . . . . . . . . . . . . Cargo Convoy Interrupts 1 | . . . . . . . . . 1 . . . . . . . Stealth | -11 -10 -10 -10 -9 -8 -7 -7 -7 -5 -5 -5 -4 -4 -4 -3 -3 --------- Run | Jun Mat Min Exi Min Mat Fac Sto Rec Fac Ext Cet Fac Upp Upp Res Qua Distress Signals 16 | . . . . . 3 1 4 1 1 3 1 1 . . 1 . Communications Jammed . | . . . . . . . . . . . . . . . . . Distress Signals . | . . . . . . . . . . . . . . . . . Times Spotted 240 | . 10 6 . 3 23 23 26 9 7 24 11 51 16 3 7 21 Peak Tracking Total 17 | . 2 3 . 3 5 3 6 4 3 4 5 17 10 3 4 11 Tactical Retreats 19 | . . 1 . . . . 1 . . 3 . 9 3 . 2 . Traps | -11 -10 -10 -10 -9 -8 -7 -7 -7 -5 -5 -5 -4 -4 -4 -3 -3 ------- Run | Jun Mat Min Exi Min Mat Fac Sto Rec Fac Ext Cet Fac Upp Upp Res Qua Traps Triggered 11 | . 3 . . . . 1 . . . 3 . 3 . . 1 . Indirectly . | . . . . . . . . . . . . . . . . . Trap Hack Attempts . | . . . . . . . . . . . . . . . . . Triggered . | . . . . . . . . . . . . . . . . . Disarmed . | . . . . . . . . . . . . . . . . . Reprogrammed 4 | . . . . . 4 . . . . . . . . . . . Reused 1 | . . . . . 1 . . . . . . . . . . . Traps Extracted . | . . . . . . . . . . . . . . . . . Installed . | . . . . . . . . . . . . . . . . . Triggered 4 | . . . . . 1 . . . 3 . . . . . . . Machines | -11 -10 -10 -10 -9 -8 -7 -7 -7 -5 -5 -5 -4 -4 -4 -3 -3 ---------- Run | Jun Mat Min Exi Min Mat Fac Sto Rec Fac Ext Cet Fac Upp Upp Res Qua Machines Disabled 18 | . 1 . . . 2 6 1 . . 2 2 3 . . . 1 Max in Single Turn 4 | . 1 . . . 1 4 1 . . 1 1 1 . . . 1 Garrison Access 2 | . . . . . . 1 1 . . . . . . . . . Machines Repaired . | . . . . . . . . . . . . . . . . . Machines Sabotaged . | . . . . . . . . . . . . . . . . . Overloaded Fab Kills . | . . . . . . . . . . . . . . . . . Hacking | -11 -10 -10 -10 -9 -8 -7 -7 -7 -5 -5 -5 -4 -4 -4 -3 -3 --------- Run | Jun Mat Min Exi Min Mat Fac Sto Rec Fac Ext Cet Fac Upp Upp Res Qua Machines Accessed 66 | . 2 . 2 . 6 8 6 8 5 14 2 3 1 . 7 2 Terminals 49 | . 2 . . . 5 6 4 6 3 13 2 2 . . 4 2 Fabricators 2 | . . . . . . . . . 1 . . . . . 1 . Repair Stations 3 | . . . . . 1 . 1 . 1 . . . . . . . Recycling Units 6 | . . . . . . 1 . 2 . 1 . 1 . . 1 . Scanalyzers 1 | . . . . . . . . . . . . . . . 1 . Garrison Access 2 | . . . . . . 1 1 . . . . . . . . . Total Hacks 170 | . 4 . 2 . 29 13 13 25 16 36 7 8 1 . 12 4 Successful 62 | . 1 . 2 . 13 6 3 11 7 7 3 2 1 . 6 . Failed 108 | . 3 . . . 16 7 10 14 9 29 4 6 . . 6 4 Catastrophic 24 | . . . . . . 3 3 3 . 9 1 1 . . 3 1 Database Lockouts . | . . . . . . . . . . . . . . . . . Manual 49 | . 2 . 1 . 14 1 4 8 1 15 . 3 . . . . Terminals 130 | . 4 . . . 23 10 8 21 6 35 7 6 . . 6 4 Fabricators 7 | . . . . . . . . . 6 . . . . . 1 . Repair Stations 12 | . . . . . 6 . 2 . 4 . . . . . . . Recycling Units 10 | . . . . . . 2 . 4 . 1 . 2 . . 1 . Scanalyzers 4 | . . . . . . . . . . . . . . . 4 . Garrison Access 4 | . . . . . . 1 3 . . . . . . . . . Terminal Hacks 43 | . 1 . 2 . 9 4 1 9 2 6 3 2 1 . 3 . Record 4 | . . . 1 . . . . . . . 3 . . . . . Robot Analysis 8 | . 1 . . . 3 1 . 3 . . . . . . . . Prototype ID Bank 4 | . . . . . . 1 . 1 . 1 . 1 . . . . Open Door 6 | . . . . . . . . . 1 4 . . 1 . . . Open DSF 2 | . . . . . . . . . 1 . . . . . 1 . Branch Access Points 6 | . . . . . 1 1 1 1 . 1 . . . . 1 . Emergency Access Points 1 | . . . . . . 1 . . . . . . . . . . Alert Level 2 | . . . . . . . . 2 . . . . . . . . Unreport Threat 1 | . . . . . 1 . . . . . . . . . . . Locate Traps 3 | . . . . . 1 . . . . . . 1 . . 1 . Reprogram Traps 2 | . . . . . 2 . . . . . . . . . . . Security Status 1 | . . . . . . . . 1 . . . . . . . . Recall Reinforcements 1 | . . . . . 1 . . . . . . . . . . . Hauler Manifests 1 | . . . . . . . . 1 . . . . . . . . EX-Prototype ID Bank 1 | . . . 1 . . . . . . . . . . . . . Fabricator Hacks 1 | . . . . . . . . . 1 . . . . . . . Network Status 1 | . . . . . . . . . 1 . . . . . . . Repair Station Hacks 9 | . . . . . 4 . 1 . 4 . . . . . . . Scan Component 5 | . . . . . 2 . 1 . 2 . . . . . . . Repair 4 | . . . . . 2 . . . 2 . . . . . . . Recycling Unit Hacks 4 | . . . . . . 1 . 2 . 1 . . . . . . Report Inventory 1 | . . . . . . 1 . . . . . . . . . . Retrieve Components 3 | . . . . . . . . 2 . 1 . . . . . . Scanalyzer 3 | . . . . . . . . . . . . . . . 3 . Insert Component 2 | . . . . . . . . . . . . . . . 2 . Analyze 1 | . . . . . . . . . . . . . . . 1 . Garrison Access Hacks 2 | . . . . . . 1 1 . . . . . . . . . Seal Access 2 | . . . . . . 1 1 . . . . . . . . . Unauthorized Hacks . | . . . . . . . . . . . . . . . . . Terminals . | . . . . . . . . . . . . . . . . . Fabricators . | . . . . . . . . . . . . . . . . . Repair Stations . | . . . . . . . . . . . . . . . . . Recycling Units . | . . . . . . . . . . . . . . . . . Scanalyzers . | . . . . . . . . . . . . . . . . . Garrison Access . | . . . . . . . . . . . . . . . . . Data Cores Recovered . | . . . . . . . . . . . . . . . . . Used . | . . . . . . . . . . . . . . . . . Hacking Detections 49 | . 2 . . . 5 6 4 6 4 10 2 3 . . 5 2 Full Trace Events 2 | . . . . . . . . . . 1 . 1 . . . . Feedback Events 1 | . . . . . . . . . . . . 1 . . . . Corruption 1 | . . . . . . . . . . . . 1 . . . . Feedback Blocked . | . . . . . . . . . . . . . . . . . Robot Schematics Acquired . | . . . . . . . . . . . . . . . . . Robots Built . | . . . . . . . . . . . . . . . . . Authchips . | . . . . . . . . . . . . . . . . . Time . | . . . . . . . . . . . . . . . . . Total Robot Build Rating . | . . . . . . . . . . . . . . . . . Part Schematics Acquired 1 | . . . . . . . . . . . . . . . 1 . Parts Built . | . . . . . . . . . . . . . . . . . Authchips . | . . . . . . . . . . . . . . . . . Time . | . . . . . . . . . . . . . . . . . Total Part Build Rating . | . . . . . . . . . . . . . . . . . Parts Repaired 4 | . . . . . 2 . . . 2 . . . . . . . Time 140 | . . . . . 52 . . . 88 . . . . . . . Parts Recycled . | . . . . . . . . . . . . . . . . . Recycled Matter . | . . . . . . . . . . . . . . . . . Retrieved Matter . | . . . . . . . . . . . . . . . . . Retrieved Components 15 | . . . . . . . . 6 . 9 . . . . . . Parts Scanalyzed 1 | . . . . . . . . . . . . . . . 1 . Part Schematics Acquired 1 | . . . . . . . . . . . . . . . 1 . Parts Damaged 1 | . . . . . . . . . . . . . . . 1 . Bothacking | -11 -10 -10 -10 -9 -8 -7 -7 -7 -5 -5 -5 -4 -4 -4 -3 -3 ------------ Run | Jun Mat Min Exi Min Mat Fac Sto Rec Fac Ext Cet Fac Upp Upp Res Qua Used RIF Installer . | . . . . . . . . . . . . . . . . . Robots Hacked . | . . . . . . . . . . . . . . . . . Non-combat . | . . . . . . . . . . . . . . . . . Combat . | . . . . . . . . . . . . . . . . . Robot Hacks Applied . | . . . . . . . . . . . . . . . . . Relay Couplers Released 4 | . . . . . . . 4 . . . . . . . . . Programmers 4 | . . . . . . . 4 . . . . . . . . . Fabnet Peak Effective % . | . . . . . . . . . . . . . . . . . Robots Rewired . | . . . . . . . . . . . . . . . . . Allies Hacked . | . . . . . . . . . . . . . . . . . Hacks Repelled . | . . . . . . . . . . . . . . . . . Allies | -11 -10 -10 -10 -9 -8 -7 -7 -7 -5 -5 -5 -4 -4 -4 -3 -3 -------- Run | Jun Mat Min Exi Min Mat Fac Sto Rec Fac Ext Cet Fac Upp Upp Res Qua Total Allies 19 | . . 3 . . . . 10 . . 6 . . . . . . Largest Group 10 | . . 3 3 3 . . 10 1 . 3 1 . . . . . Highest-Rated Group 214 | . . 40 40 40 . . 173 16 . 214 144 . . . . . Highest-Rated Ally 159 | . . 16 16 16 . . 29 16 . 159 144 . . . . . Total Orders 2 | . . . . . . . . . . . . . 2 . . . ROAM 1 | . . . . . . . . . . . . . 1 . . . EXPLORE 1 | . . . . . . . . . . . . . 1 . . . Ally Attacks 193 | . . . . 11 . . 23 4 17 81 37 20 . . . . Total Damage 5372 | . . . . 130 . . 335 67 839 2317 510 1174 . . . . Kills 44 | . . . . 2 . . 3 . 7 19 4 9 . . . . Allies Corrupted 5 | . . . . . . . 1 . 1 1 1 1 . . . . Allies Melted 1 | . . . . . . . . . . 1 . . . . . . Turrets Deployed 3 | . . . . . . . . . 2 . . 1 . . . . Intel | -11 -10 -10 -10 -9 -8 -7 -7 -7 -5 -5 -5 -4 -4 -4 -3 -3 ------- Run | Jun Mat Min Exi Min Mat Fac Sto Rec Fac Ext Cet Fac Upp Upp Res Qua Robot Analysis Total 7 | . 1 . . . 3 1 . 2 . . . . . . . . Derelict Logs Recovered 3 | . . 1 . 1 . . . . . . . . 1 . . . Drone Launches 3 | . . . . . . . . . . . . . 3 . . . Drone Recoveries 2 | . . . . . . . . . . . . . 2 . . . Exploration | -11 -10 -10 -10 -9 -8 -7 -7 -7 -5 -5 -5 -4 -4 -4 -3 -3 ------------- Run | Jun Mat Min Exi Min Mat Fac Sto Rec Fac Ext Cet Fac Upp Upp Res Qua Turns Passed 13917 | 31 653 433 408 513 1026 2167 1289 1107 1325 1615 449 1624 282 4 303 688 Spaces Moved 7864 | 41 334 211 212 252 562 976 555 527 690 739 190 1175 479 6 505 410 Core 564 | 41 23 . . . 1 . . . . . . . 48 6 135 310 Treads . | . . . . . . . . . . . . . . . . . Legs 5958 | . 311 211 212 252 561 976 555 527 690 739 190 673 . . . 61 Wheels . | . . . . . . . . . . . . . . . . . Hover 39 | . . . . . . . . . . . . . . . . 39 Flight 1303 | . . . . . . . . . . . . 502 431 . 370 . Fastest Speed 39 | 50 50 190 190 190 120 120 190 167 144 144 191 39 40 50 40 50 Average Speed 146 | 50 156 190 190 190 121 190 191 191 166 177 191 122 41 50 55 80 Slowest Speed 650 | 50 190 190 190 190 650 195 263 287 167 191 191 238 50 50 70 183 Overloaded Moves . | . . . . . . . . . . . . . . . . . Propulsion Burnouts . | . . . . . . . . . . . . . . . . . Robots Hopped 21 | . . . . . . . . . . . . 13 1 . 7 . Cave-ins Triggered 1 | . . . . . . . . . . 1 . . . . . . Teleports 1 | . . . . . . . . . . . . . . . . 1 Exploration Rate (%) 43 | 3 60 52 58 54 45 22 73 98 11 57 52 33 58 3 14 43 Regions Visited 16 Branch Regions 10 Pre-discovered Areas 2 | . . . 1 1 . . . . . . . . . . . . Known Exits Taken 5 | . . . . . 1 1 1 . . 1 . . . . 1 . Unknown Exits Taken 11 | 1 1 1 1 1 . . . 1 1 . 1 1 1 1 . . Scrap Searched 2 | . . . . 1 . . . . . . . . 1 . . . Spaces Dug 24 | . . . . . . 1 . . . 22 . . . . . 1 Terrain Destroyed 185 | . 35 . . . . 65 15 . . 31 12 26 . . . 1 Melee 15 | . . . . . . . . . . 14 . . . . . 1 Projectile 84 | . . . . . . 14 15 . . 17 12 26 . . . . AOE 86 | . 35 . . . . 51 . . . . . . . . . . Terrain Rammed . | . . . . . . . . . . . . . . . . . Walls Destroyed . | . . . . . . . . . . . . . . . . . Machines Disabled . | . . . . . . . . . . . . . . . . . Actions | -11 -10 -10 -10 -9 -8 -7 -7 -7 -5 -5 -5 -4 -4 -4 -3 -3 --------- Run | Jun Mat Min Exi Min Mat Fac Sto Rec Fac Ext Cet Fac Upp Upp Res Qua Total 9521 | 51 403 224 218 275 786 1183 673 605 859 908 224 1259 565 6 517 765 Wait 903 | . 9 . . 9 111 115 33 25 149 46 8 12 77 . 1 308 Move 7809 | 40 333 210 211 251 561 975 554 526 689 738 189 1151 476 5 490 410 Hop 18 | . . . . . . . . . . . . 10 1 . 7 . Pick Up 118 | 8 15 2 5 2 17 21 6 3 5 15 . 9 3 . 4 3 Fast Attach 24 | . . . . . 2 1 2 . . 2 . 2 . . 8 7 Attach 71 | 3 9 . 1 . 12 6 4 2 2 2 . 17 3 . 2 8 Detach 11 | . . . . . . 1 . . . . . 1 1 . 1 7 Swap 26 | . 2 . . 2 8 7 4 . . 2 . 1 . . . . Drop 76 | . 2 . 1 3 9 9 3 20 4 2 1 8 3 . 4 7 Fire 385 | . 33 12 . 8 65 48 67 29 10 39 26 48 . . . . Melee 49 | . . . . . . . . . . 47 . . . . . 2 Ram 14 | . . . . . 1 . . . . . . . 1 1 . 11 Kick . | . . . . . . . . . . . . . . . . . Crush . | . . . . . . . . . . . . . . . . . Escape Stasis 17 | . . . . . . . . . . 15 . . . . . 2 Rewire . | . . . . . . . . . . . . . . . . . Trap . | . . . . . . . . . . . . . . . . . Miscellaneous . | . . . . . . . . . . . . . . . . . Route ------- -11/Junkyard -10/Materials (discovered 3 exits: [*Mat x2] / [*Min]) -10/Mines (discovered 2 exits: [*Mat] / *Exi) -10/Exiles -9/Mines -8/Materials -7/Factory (discovered 4 exits: *Sto x2 / Low x2) -7/Storage (discovered 2 exits: [*Fac] / *Rec) -7/Recycling -5/Factory -5/Extension (discovered 2 exits: *Fac / *Cet) -5/Cetus -4/Factory -4/Upper Caves -4/Upper Caves -3/Research (discovered 3 exits: Arm / *Qua x2) -3/Quarantine History --------- Turn | Location | Event 20 | -11/Junkyard | Discovered new exit (range 14) 32 | -11/Junkyard | Entered Materials 279 | -10/Materials | Discovered new exit (range 12) 317 | -10/Materials | Build established: Mutant 437 | -10/Materials | Core integrity fell below 50% 467 | -10/Materials | Lost 3 parts (2n1w) 470 | -10/Materials | Discovered new exit (range 16) 666 | -10/Materials | Discovered new exit (range 9) 685 | -10/Materials | Entered Mines 816 | -10/Mines | Assembled infested the area 838 | -10/Mines | Learned location of 1 exit from Materials 880 | -10/Mines | Core integrity fell below 20% 1007 | -10/Mines | Discovered new exit (range 9) 1032 | -10/Mines | Assisted by bots powering up and referring to "LRC-V3" 1108 | -10/Mines | Discovered new exit (range 5) 1118 | -10/Mines | Entered Exiles 1118 | -10/Exiles | Accompanied by 3 allies 1162 | -10/Exiles | Met 8R-AWN 1198 | -10/Exiles | Met EX-HEX 1248 | -10/Exiles | Met EX-BIN 1270 | -10/Exiles | Aligned with FarCom system 1272 | -10/Exiles | Given EX-Vault access code 1316 | -10/Exiles | Opened EX-Vault 1330 | -10/Exiles | Found Deploy-a-Sentry 1333 | -10/Exiles | Found Deploy-a-Sentry 1336 | -10/Exiles | Found Deploy-a-Sentry 1340 | -10/Exiles | Found Cloak of Protection 1348 | -10/Exiles | Found Gui. Plasma Cannon 1385 | -10/Exiles | Warned to stay clear of 0b10 Research branches 1440 | -10/Exiles | Met EX-DEC 1448 | -10/Exiles | Learned location of Zion (-6) 1503 | -10/Exiles | Discovered new exit (range 14) 1526 | -10/Exiles | Stole three prototypes: Cloak of Protection, Gui. Plasma Cannon, Deploy-a-Sentry 1526 | -10/Exiles | Entered Mines 1526 | -9/Mines | Accompanied by 3 allies 2009 | -9/Mines | Discovered new exit (range 7) 2039 | -9/Mines | Entered Materials 2039 | -8/Materials | Evolved 4 slots: Propulsion x2, Utility x2 2040 | -8/Materials | Identified exit to Factory 2081 | -8/Materials | Repaired Aluminum Leg 2110 | -8/Materials | Repaired Aluminum Leg 2357 | -8/Materials | Build established: Scavenger-Mutant 2845 | -8/Materials | Lost 8 parts (1p4n2u1w) 3047 | -8/Materials | Build established: Mutant 3065 | -8/Materials | Entered Factory 3065 | -7/Factory | Evolved 2 slots: Utility x1, Weapon x1 3067 | -7/Factory | FarCom data flow suspended 3480 | -7/Factory | Build established: Tank 3765 | -7/Factory | Discovered new exit (range 15) 4872 | -7/Factory | Identified exit to Storage 4872 | -7/Factory | Identified exit to Lower Caves 5232 | -7/Factory | Entered Storage 5457 | -7/Storage | Garrison activated, responded to threat 5535 | -7/Storage | Lost 5 parts (2n1u2w) 5609 | -7/Storage | Assisted by bots powering up and referring to "LRC-V3" 5782 | -7/Storage | Discovered new exit (range 16) 6019 | -7/Storage | Build established: Mutant 6281 | -7/Storage | Identified exit to Recycling 6513 | -7/Storage | Used back door to open Recycling access 6521 | -7/Storage | Entered Recycling 6521 | -7/Recycling | Accompanied by 1 ally 6522 | -7/Recycling | Found Scrap Engine 7332 | -7/Recycling | Discovered new exit (range 5) 7333 | -7/Recycling | Build established: Construct 7628 | -7/Recycling | Entered Factory 7628 | -5/Factory | Evolved 4 slots: Power x1, Propulsion x1, Utility x1, Weapon x1 7816 | -5/Factory | Repaired Imp. Cooling System 7861 | -5/Factory | Repaired Transmission Jammer 7960 | -5/Factory | Identified exit to DSF 8306 | -5/Factory | Discovered new exit (range 6) 8334 | -5/Factory | Cargo convoy interrupted 8410 | -5/Factory | DAS Turret deployed 8422 | -5/Factory | DAS Turret deployed 8953 | -5/Factory | Entered Extension 9105 | -5/Extension | Rescued A7 9195 | -5/Extension | Rescued a captive Derelict 9397 | -5/Extension | Identified exit to Cetus 9509 | -5/Extension | Crushed by falling debris 10171 | -5/Extension | Rescued a captive Derelict 10171 | -5/Extension | Rescued a captive Derelict 10232 | -5/Extension | Rescued a captive Derelict 10233 | -5/Extension | Rescued a captive Derelict 10553 | -5/Extension | Discovered new exit (range 10) 10568 | -5/Extension | Entered Cetus 10568 | -5/Cetus | Accompanied by 1 ally (A7) 10573 | -5/Cetus | Acquired a Cetus Manufacturing Module code from A7 10593 | -5/Cetus | Spotted Cetus Guard 10593 | -5/Cetus | Spotted Cetus Guard 10596 | -5/Cetus | Spotted Cetus Guard 10596 | -5/Cetus | Spotted Cetus Guard 10600 | -5/Cetus | Destroyed Cetus Guard 10622 | -5/Cetus | Allies destroyed Cetus Guard 10633 | -5/Cetus | Allies destroyed Cetus Guard 10636 | -5/Cetus | Destroyed Cetus Guard 10727 | -5/Cetus | Discovered new exit (range 15) 10834 | -5/Cetus | Extracted ID and sensor layout for unrecognized location from A7's data core 11017 | -5/Cetus | Entered Factory 11017 | -4/Factory | Evolved 2 slots: Propulsion x1, Utility x1 11884 | -4/Factory | DAS Turret deployed 11911 | -4/Factory | Lost 4 parts (1p2u1w) 12045 | -4/Factory | Found Exp. Hacking Suite 12181 | -4/Factory | Build established: Mutant 12380 | -4/Factory | System corruption reached 10% 12464 | -4/Factory | Lost 11 parts (1p3n5u2w) 12497 | -4/Factory | Spotted B-86 Titan 12606 | -4/Factory | Core integrity fell below 50% 12638 | -4/Factory | Discovered new exit (range 8) 12641 | -4/Factory | Entered Upper Caves 12789 | -4/Upper Caves | Learned Research terminal intel 12889 | -4/Upper Caves | Attracted the attention of an 0b10 checkpoint 12906 | -4/Upper Caves | Core integrity fell below 20% 12920 | -4/Upper Caves | Discovered new exit (range 8) 12923 | -4/Upper Caves | Entered another Upper Caves area 12923 | -4/Upper Caves | Spotted S2-A9U(f) 12923 | -4/Upper Caves | Spotted 0X-6VK(f) 12924 | -4/Upper Caves | Encountered a Master Thief 12924 | -4/Upper Caves | Encountered a Master Thief 12925 | -4/Upper Caves | Spotted 49-269(f) 12926 | -4/Upper Caves | Encountered a Master Thief 12926 | -4/Upper Caves | Discovered new exit (range 3) 12927 | -4/Upper Caves | Entered Research 12927 | -3/Research | Evolved 2 slots: Utility x1, Weapon x1 12928 | -3/Research | Loaded intel: 23 terminal locations 12929 | -3/Research | Lost 4 parts (1p1n2u) 13004 | -3/Research | Spotted B-86 Titan 13039 | -3/Research | Identified exit to Armory 13039 | -3/Research | Identified exit to Quarantine 13230 | -3/Research | Entered Quarantine 13382 | -3/Quarantine | Found Enh. Force Lance 13421 | -3/Quarantine | Found Alien Artifact 13421 | -3/Quarantine | Identified Phase Redirector 13547 | -3/Quarantine | Scanned by Researcher 13573 | -3/Quarantine | Lost 3 parts (1n2u) 13580 | -3/Quarantine | Found Alien Artifact 13580 | -3/Quarantine | Identified Hpw. Transdimensional Reconstructor 13580 | -3/Quarantine | Warped through subspace 13891 | -3/Quarantine | Core integrity fell below 50% 13902 | -3/Quarantine | Core integrity fell below 20% 13918 | -3/Quarantine | Destroyed by H-77 Assassin with Coil Gun Last Messages --------------- 13894_ Penetrated by Slug. 13894_ Slug penetrates Door. 13895_ Penetrated by Slug. 13897_ Slug penetrates Wall. 13897_ Broken Imp. Corruption Screen destroyed. 13900_ Slug penetrates Wall. 13901_ System corrupted: Energy discharge (-16). 13901_ Penetrated by Slug. 13904_ Slug penetrates Wall. 13905_ Slammed into Swarm Drone. 13906_ Penetrated by Slug. 13909_ Slug penetrates Wall. 13912_ Penetrated by Slug. 13914_ Slug penetrates Wall. 13917_ System corrupted: Energy discharge (-29). 13917_ Penetrated by Slug. 13917_ Slug penetrates K-01 Serf. 13917_ K-01 Serf destroyed. 13918_ Penetrated by Slug. 13918_ Slug penetrates Wall. Map ----- +----------------------------------------------------+ | ??????????#"R #??????# # # """ """ #????? | | ??????????#""" #?#######+"### ### """ """ #????? | | ??????????#""" #?# #### #?# """ """ #????? | | ??????????# #?# ! ! + #?# #????? | | ??????????########?# # ####?# #????? | | ???????????????????######### #????# #????? | | ???????????????????????##### #????# #????? | | ???????????????????????# ##########+#####????? | | ???????????????????????# #?????? | | ???????????????????????# #?????? | | ???????????????????????# #?????? | | ???????????????????????# h## ###### #?????? | | ?????????????############ ### #????# #?????? | | ????????????# ! ]!! # hn#?# #????# #?????? | | ????????????# ]!! # #???###????# #?????? | | ????????????# !!! + #??????????# #?????? | | ???????????????""" #n #??######??# #?????? | | ???????????????""" ! ?#n #?? ! ??# #?????? | | ????????????????"" ??# #?S """??# #?????? | | ???????????????? ???# #?"" """ ?# #?????? | | ???????????????#####????# # "" """ ## #?????? | | ????????????????????????# # ## ####### | | ????????????????????????# + ## | | ????????????????????????# # ! ! ## | | ????????????????????????# =# ## """ """ | | ????????????????????????#@*%#?########## """ """ | | ??????????????????????? =! k ???? """ """ | | ????????????????????? k """ """ | | ??????????????????? """ """ | | ??????????????????####+################# | | ???????????????????????????????????????# | | ???????????????????????????????????????#= | | ???????????????????????????????????????####### # | | ?????????????????????????????????????????????? ? | | ?????????????????????????????????????????????? ? | | ??????????????????????????????????????????????#?#? | | ?????????????????????????????????????????????????? | | ?????????????????????????????????????????????????? | | ?????????????????????????????????????????????????? | | ?????????????????????????????????????????????????? | | ?????????????????????????????????????????????????? | | | | | | | | | | | | | | | | | | | +----------------------------------------------------+ Best States ------------- Heat Dissipation 70 Energy Generation 42 Energy Capacity 780 Matter Stores 300 Matter Capacity 300 Sight Range 16 Terrain Scan Density 10 Jamming Range 12 Cloak Strength 5 Armor Coverage 225 Resistance: EM 25 Point Defense Rating 160 Evasion (%) 62 Offensive Hacking 16 Defensive Hacking 14 Item Schematics ----------------- Adv. Force Field | -3/Research | Scanalyzed Robot Schematics ------------------ None Fabricated ------------ Nothing Alien Tech Used ----------------- Phase Redirector High-powered Transdimensional Reconstructor Achievements -------------- Streaker Challenges ------------ None Game ------ Seed ShadingZhirovRail Manual? 0 Play Time 01:39:51 Cumulative 96.7 hours Start 2023.11.01 @ 16:46:25 End 2023.11.01 @ 18:23:41 Sessions 1 Manual Loads 0 Difficulty Rogue Special Mode None Game No. 159 Rogue 156 Adventurer 3 Explorer 0 Win Type - Total 0 Types 0/0/0/0/0/0/0/0/0 Lore% 42 Gallery% 55 Achievement% 39 Wizard Run 0 Options --------- ASCII 0 Keyboard 0 Movement Mouse Keybinds 0 Fullscreen 2 Font 18/SmallcapsGlow Map View 76x50 Tactical HUD 1 Map Filters NONE Filters NONE Steam 1 RUN: d324e134-c0b3-4e61-9e53-0cc37746858e